[Event "9e Open International de Porticcio"]
[Site "Porticcio, France"]
[Date "2024.07.02"]
[Round "6.10"]
[White "Bernardi, Nicolas"]
[Black "Grisoni, Emma"]
[Result "0-1"]
[TimeControl "1h30+30s/move"]
[WhiteElo "1832"]
[BlackElo "1746"]

1. e4 {[%clk 01:30:57]} {[%emt 00:00:02]} c5 {[%clk 01:30:56]} {[%emt
00:00:05]} 2. Nf3 {[%clk 01:31:24]} {[%emt 00:00:03]} d6 {[%clk 01:31:19]}
{[%emt 00:00:07]} 3. d4 {[%clk 01:31:49]} {[%emt 00:00:04]} cxd4 {[%clk
01:31:45]} {[%emt 00:00:04]} 4. Nxd4 {[%clk 01:32:15]} {[%emt 00:00:04]} Nf6
{[%clk 01:32:08]} {[%emt 00:00:07]} 5. Nc3 {[%clk 01:32:34]} {[%emt 00:00:11]}
g6 {[%clk 01:32:29]} {[%emt 00:00:09]} 6. Be3 {[%clk 01:32:51]} {[%emt
00:00:14]} Bg7 {[%clk 01:32:51]} {[%emt 00:00:07]} 7. f3 {[%clk 01:33:10]}
{[%emt 00:00:10]} O-O {[%clk 01:33:07]} {[%emt 00:00:15]} 8. Qd2 {[%clk
01:33:33]} {[%emt 00:00:06]} Nc6 {[%clk 01:33:31]} {[%emt 00:00:07]} 9. O-O-O
{[%clk 01:33:53]} {[%emt 00:00:10]} Nxd4 {[%clk 01:33:58]} {[%emt 00:00:04]} 10.
Bxd4 {[%clk 01:34:12]} {[%emt 00:00:10]} Be6 {[%clk 01:34:25]} {[%emt
00:00:03]} 11. Kb1 {[%clk 01:34:25]} {[%emt 00:00:17]} Qc7 {[%clk 01:34:45]}
{[%emt 00:00:11]} 12. h4 {[%clk 01:34:24]} {[%emt 00:00:31]} Rfc8 {[%clk
01:34:49]} {[%emt 00:00:25]} 13. h5 {[%clk 01:33:28]} {[%emt 00:01:25]} Qa5
{[%clk 01:34:08]} {[%emt 00:01:12]} 14. a3 {[%clk 01:30:00]} {[%emt 00:03:58]}
Rab8 {[%clk 01:34:09]} {[%emt 00:00:29]} 15. hxg6 {[%clk 01:26:42]} {[%emt
00:03:48]} hxg6 {[%clk 01:32:27]} {[%emt 00:02:11]} 16. Bd3 {[%clk 01:25:41]}
{[%emt 00:01:32]} b5 {[%clk 01:16:07]} {[%emt 00:16:50]} 17. Qg5 {[%clk
01:24:30]} {[%emt 00:01:40]} Qd8 {[%clk 00:51:11]} {[%emt 00:25:27]} 18. Nd5
{[%clk 01:17:18]} {[%emt 00:07:42]} Bxd5 {[%clk 00:49:49]} {[%emt 00:01:52]} 19.
exd5 {[%clk 01:16:52]} {[%emt 00:00:56]} b4 {[%clk 00:44:12]} {[%emt 00:06:08]}
20. b3 {[%clk 00:52:06]} {[%emt 00:25:15]} bxa3 {[%clk 00:43:53]} {[%emt
00:00:49]} 21. Ka2 {[%clk 00:52:12]} {[%emt 00:00:24]} Qa5 {[%clk 00:42:10]}
{[%emt 00:02:14]} 22. Bxg6 {[%clk 00:40:17]} {[%emt 00:12:24]} e5 {[%clk
00:27:54]} {[%emt 00:14:46]} 23. Bd3 {[%clk 00:10:32]} {[%emt 00:30:14]} exd4
{[%clk 00:24:24]} {[%emt 00:04:00]} 24. Rh6 {[%clk 00:08:17]} {[%emt 00:02:44]}
Nxd5 {[%clk 00:18:23]} {[%emt 00:06:31]} 25. Bf5 {[%clk 00:03:47]} {[%emt
00:05:01]} Rxc2+ {[%clk 00:15:49]} {[%emt 00:03:05]} 0-1

[Event "9e Open International de Porticcio"]
[Site "Porticcio, France"]
[Date "2024.07.02"]
[Round "6.11"]
[White "Charni, Ilyes"]
[Black "Vuitton, Gilles"]
[Result "1/2-1/2"]
[TimeControl "1h30+30s/move"]
[WhiteElo "1858"]
[BlackElo "1980"]

1. e4 {[%clk 01:30:57]} {[%emt 00:00:02]} e5 {[%clk 01:29:49]} {[%emt
00:01:11]} 2. Nf3 {[%clk 01:31:23]} {[%emt 00:00:05]} Nc6 {[%clk 01:30:13]}
{[%emt 00:00:06]} 3. Bc4 {[%clk 01:31:51]} {[%emt 00:00:02]} Nf6 {[%clk
01:30:31]} {[%emt 00:00:11]} 4. d3 {[%clk 01:32:15]} {[%emt 00:00:07]} h6
{[%clk 01:30:48]} {[%emt 00:00:12]} 5. c3 {[%clk 01:32:01]} {[%emt 00:00:44]}
d6 {[%clk 01:30:41]} {[%emt 00:00:37]} 6. Nbd2 {[%clk 01:31:45]} {[%emt
00:00:46]} g6 {[%clk 01:30:08]} {[%emt 00:01:02]} 7. O-O {[%clk 01:26:43]}
{[%emt 00:05:33]} Bg7 {[%clk 01:30:30]} {[%emt 00:00:08]} 8. Bb3 {[%clk
01:25:53]} {[%emt 00:01:21]} O-O {[%clk 01:30:30]} {[%emt 00:00:29]} 9. Re1
{[%clk 01:24:17]} {[%emt 00:02:06]} g5 {[%clk 01:21:46]} {[%emt 00:09:14]} 10.
Nf1 {[%clk 01:15:12]} {[%emt 00:09:35]} Ne7 {[%clk 01:13:11]} {[%emt 00:09:05]}
11. a4 {[%clk 00:58:25]} {[%emt 00:17:17]} c6 {[%clk 01:05:06]} {[%emt
00:08:35]} 12. d4 {[%clk 00:45:16]} {[%emt 00:13:40]} Qc7 {[%clk 01:01:20]}
{[%emt 00:04:16]} 13. dxe5 {[%clk 00:40:59]} {[%emt 00:04:47]} dxe5 {[%clk
01:01:36]} {[%emt 00:00:13]} 14. Qc2 {[%clk 00:39:01]} {[%emt 00:02:29]} Nh5
{[%clk 00:59:00]} {[%emt 00:03:05]} 15. Ne3 {[%clk 00:34:43]} {[%emt 00:04:49]}
Bf6 {[%clk 00:49:36]} {[%emt 00:09:53]} 16. Nc4 {[%clk 00:30:29]} {[%emt
00:04:45]} Be6 {[%clk 00:35:53]} {[%emt 00:14:13]} 17. Be3 {[%clk 00:29:22]}
{[%emt 00:01:38]} Ng6 {[%clk 00:34:43]} {[%emt 00:01:40]} 18. Rad1 {[%clk
00:25:59]} {[%emt 00:03:53]} Be7 {[%clk 00:34:39]} {[%emt 00:00:33]} 19. Ncd2
{[%clk 00:22:03]} {[%emt 00:04:26]} g4 {[%clk 00:23:33]} {[%emt 00:11:37]} 20.
Bxe6 {[%clk 00:18:55]} {[%emt 00:03:38]} fxe6 {[%clk 00:22:38]} {[%emt
00:01:23]} 21. Bxh6 {[%clk 00:18:19]} {[%emt 00:01:08]} gxf3 {[%clk 00:21:18]}
{[%emt 00:01:50]} 22. Bxf8 {[%clk 00:18:37]} {[%emt 00:00:12]} Rxf8 {[%clk
00:21:12]} {[%emt 00:00:35]} 23. Nxf3 {[%clk 00:18:56]} {[%emt 00:00:13]} Rxf3
{[%clk 00:12:24]} {[%emt 00:09:17]} 24. gxf3 {[%clk 00:19:09]} {[%emt
00:00:18]} Nh4 {[%clk 00:12:27]} {[%emt 00:00:26]} 25. Kh1 {[%clk 00:17:43]}
{[%emt 00:01:55]} Bc5 {[%clk 00:11:56]} {[%emt 00:01:02]} 26. Rg1+ {[%clk
00:14:05]} {[%emt 00:04:09]} Kh7 {[%clk 00:09:47]} {[%emt 00:02:39]} 27. Qd2
{[%clk 00:12:22]} {[%emt 00:02:13]} Qf7 {[%clk 00:09:41]} {[%emt 00:00:36]} 28.
Qe2 {[%clk 00:07:34]} {[%emt 00:05:18]} Nf4 {[%clk 00:04:35]} {[%emt 00:05:36]}
29. Qf1 {[%clk 00:05:26]} {[%emt 00:02:38]} Qh5 {[%clk 00:04:45]} {[%emt
00:00:20]} 30. Rd7+ {[%clk 00:04:59]} {[%emt 00:00:57]} Kh6 {[%clk 00:05:03]}
{[%emt 00:00:11]} 31. Rg3 {[%clk 00:04:51]} {[%emt 00:00:38]} Nxf3 {[%clk
00:04:05]} {[%emt 00:01:28]} 32. h3 {[%clk 00:04:57]} {[%emt 00:00:23]} Ng5
{[%clk 00:03:45]} {[%emt 00:00:51]} 33. Kh2 {[%clk 00:04:24]} {[%emt 00:01:03]}
Nf3+ {[%clk 00:02:33]} {[%emt 00:01:41]} 34. Kh1 {[%clk 00:04:26]} {[%emt
00:00:28]} Ng5 {[%clk 00:02:54]} {[%emt 00:00:09]} 35. Kh2 {[%clk 00:04:55]}
{[%emt 00:00:01]} Nxe4 {[%emt 00:01:41]} 36. Rgg7 {[%emt 00:00:07]} Nf6 {[%emt
00:00:01]} 1/2-1/2

[Event "9e Open International de Porticcio"]
[Site "Porticcio, France"]
[Date "2024.07.03"]
[Round "7.1"]
[White "Fedorchuk, Sergey A."]
[Black "Batsiashvili, Nino"]
[Result "1/2-1/2"]
[TimeControl "1h30+30s/move"]
[WhiteElo "2546"]
[BlackElo "2450"]

1. e4 {[%clk 01:30:55]} {[%emt 00:00:03]} e5 {[%clk 01:30:57]} {[%emt
00:00:05]} 2. Nf3 {[%clk 01:31:03]} {[%emt 00:00:21]} Nc6 {[%clk 01:31:18]}
{[%emt 00:00:10]} 3. Bc4 {[%clk 01:30:29]} {[%emt 00:01:03]} Nf6 {[%clk
01:31:19]} {[%emt 00:00:30]} 4. d3 {[%clk 01:30:46]} {[%emt 00:00:12]} Bc5
{[%clk 01:30:43]} {[%emt 00:01:07]} 5. O-O {[%clk 01:29:59]} {[%emt 00:01:16]}
a5 {[%clk 01:28:00]} {[%emt 00:03:14]} 6. Be3 {[%clk 01:21:40]} {[%emt
00:08:49]} Bxe3 {[%clk 01:25:01]} {[%emt 00:03:29]} 7. fxe3 {[%clk 01:21:46]}
{[%emt 00:00:24]} O-O {[%clk 01:23:07]} {[%emt 00:02:24]} 8. Nc3 {[%clk
01:12:57]} {[%emt 00:09:18]} d6 {[%clk 01:23:10]} {[%emt 00:00:28]} 9. Ng5
{[%clk 00:48:55]} {[%emt 00:24:32]} Qe7 {[%clk 01:12:38]} {[%emt 00:11:02]} 10.
Qe1 {[%clk 00:26:36]} {[%emt 00:22:49]} Nd8 {[%clk 01:05:26]} {[%emt 00:07:42]}
11. Qg3 {[%clk 00:17:40]} {[%emt 00:09:26]} c6 {[%clk 01:03:30]} {[%emt
00:02:26]} 12. a4 {[%clk 00:18:02]} {[%emt 00:00:08]} Ng4 {[%clk 00:53:53]}
{[%emt 00:10:06]} 13. Nh3 {[%clk 00:15:03]} {[%emt 00:03:30]} h5 {[%clk
00:54:02]} {[%emt 00:00:21]} 14. Kh1 {[%clk 00:11:01]} {[%emt 00:04:32]} Be6
{[%clk 00:46:06]} {[%emt 00:08:26]} 15. Rf3 {[%clk 00:09:18]} {[%emt 00:02:13]}
Bxc4 {[%clk 00:46:19]} {[%emt 00:00:18]} 16. dxc4 {[%clk 00:09:43]} {[%emt
00:00:04]} Ne6 {[%clk 00:46:38]} {[%emt 00:00:11]} 17. Raf1 {[%clk 00:09:33]}
{[%emt 00:00:41]} Rae8 {[%clk 00:38:08]} {[%emt 00:09:00]} 18. Nf2 {[%clk
00:07:25]} {[%emt 00:02:38]} Nh6 {[%clk 00:38:05]} {[%emt 00:00:33]} 19. Nh3
{[%clk 00:05:51]} {[%emt 00:02:03]} g6 {[%clk 00:33:44]} {[%emt 00:04:52]} 20.
b3 {[%clk 00:06:03]} {[%emt 00:00:18]} Kg7 {[%clk 00:33:08]} {[%emt 00:01:05]}
21. Ne2 {[%clk 00:05:21]} {[%emt 00:01:12]} Ng4 {[%clk 00:29:34]} {[%emt
00:04:04]} 22. Nc3 {[%clk 00:04:57]} {[%emt 00:00:54]} b6 {[%clk 00:29:28]}
{[%emt 00:00:36]} 23. Qe1 {[%clk 00:03:32]} {[%emt 00:01:54]} Nc5 {[%clk
00:27:53]} {[%emt 00:02:05]} 24. Qg3 {[%clk 00:03:32]} {[%emt 00:00:31]} Ne6
{[%clk 00:23:40]} {[%emt 00:04:44]} 25. Qe1 {[%clk 00:03:47]} {[%emt 00:00:15]}
Nc5 {[%clk 00:22:54]} {[%emt 00:01:16]} 26. Qg3 {[%clk 00:04:11]} {[%emt
00:00:05]} Ne6 {[%clk 00:23:12]} {[%emt 00:00:13]} 27. Qe1 {[%clk 00:04:34]}
{[%emt 00:00:06]} Nc5 {[%clk 00:23:26]} {[%emt 00:00:16]} 28. Qg3 {[%emt
00:00:16]} 1/2-1/2

[Event "9e Open International de Porticcio"]
[Site "Porticcio, France"]
[Date "2024.07.03"]
[Round "7.2"]
[White "Bailet, Pierre"]
[Black "Bulmaga, Irina"]
[Result "1/2-1/2"]
[TimeControl "1h30+30s/move"]
[WhiteElo "2491"]
[BlackElo "2391"]

1. e4 {[%clk 01:30:45]} {[%emt 00:00:14]} e5 {[%clk 01:30:53]} {[%emt
00:00:09]} 2. Nf3 {[%clk 01:31:01]} {[%emt 00:00:13]} Nc6 {[%clk 01:31:15]}
{[%emt 00:00:09]} 3. Bb5 {[%clk 01:31:08]} {[%emt 00:00:22]} a6 {[%clk
01:31:35]} {[%emt 00:00:11]} 4. Ba4 {[%clk 01:31:28]} {[%emt 00:00:10]} f5
{[%clk 01:31:57]} {[%emt 00:00:08]} 5. d4 {[%clk 01:31:32]} {[%emt 00:00:25]}
exd4 {[%clk 01:32:06]} {[%emt 00:00:21]} 6. e5 {[%clk 01:31:24]} {[%emt
00:00:38]} b5 {[%clk 01:32:11]} {[%emt 00:00:25]} 7. Bb3 {[%clk 01:31:42]}
{[%emt 00:00:11]} Na5 {[%clk 01:31:47]} {[%emt 00:00:56]} 8. Nxd4 {[%clk
01:27:32]} {[%emt 00:04:39]} Bb7 {[%clk 01:31:33]} {[%emt 00:00:44]} 9. O-O
{[%clk 01:05:04]} {[%emt 00:22:57]} c5 {[%clk 01:30:46]} {[%emt 00:01:19]} 10.
Bxg8 {[%clk 01:02:26]} {[%emt 00:03:07]} cxd4 {[%clk 01:29:31]} {[%emt
00:01:45]} 11. Bb3 {[%clk 01:02:32]} {[%emt 00:00:24]} Nxb3 {[%clk 01:28:04]}
{[%emt 00:01:58]} 12. axb3 {[%clk 01:02:51]} {[%emt 00:00:09]} Qb6 {[%clk
01:21:28]} {[%emt 00:07:08]} 13. Nd2 {[%clk 00:56:12]} {[%emt 00:07:08]} Bc5
{[%clk 01:17:04]} {[%emt 00:04:55]} 14. Nf3 {[%clk 00:48:06]} {[%emt 00:08:34]}
Qc6 {[%clk 01:13:35]} {[%emt 00:04:00]} 15. b4 {[%clk 00:37:26]} {[%emt
00:11:10]} Bxb4 {[%clk 01:06:25]} {[%emt 00:07:41]} 16. Qxd4 {[%clk 00:37:09]}
{[%emt 00:00:46]} Bc5 {[%clk 01:03:49]} {[%emt 00:03:06]} 17. Qd3 {[%clk
00:36:34]} {[%emt 00:01:04]} O-O {[%clk 01:01:02]} {[%emt 00:03:19]} 18. Be3
{[%clk 00:34:06]} {[%emt 00:02:57]} Be7 {[%clk 00:57:03]} {[%emt 00:04:29]} 19.
Rfd1 {[%clk 00:23:24]} {[%emt 00:11:11]} Rad8 {[%clk 00:54:40]} {[%emt
00:02:54]} 20. Rac1 {[%clk 00:21:46]} {[%emt 00:02:07]} Qg6 {[%clk 00:43:01]}
{[%emt 00:12:09]} 21. Ne1 {[%clk 00:21:01]} {[%emt 00:01:14]} Be4 {[%clk
00:41:41]} {[%emt 00:01:51]} 22. Qb3+ {[%clk 00:20:41]} {[%emt 00:00:49]} Kh8
{[%clk 00:41:53]} {[%emt 00:00:18]} 23. f3 {[%clk 00:20:51]} {[%emt 00:00:19]}
Bc6 {[%clk 00:41:32]} {[%emt 00:00:51]} 24. Qc3 {[%clk 00:19:10]} {[%emt
00:02:11]} Rc8 {[%clk 00:37:46]} {[%emt 00:04:17]} 25. Qd2 {[%clk 00:19:32]}
{[%emt 00:00:07]} Qe6 {[%clk 00:28:35]} {[%emt 00:09:41]} 26. Nd3 {[%clk
00:17:34]} {[%emt 00:02:27]} Bb7 {[%clk 00:25:01]} {[%emt 00:04:05]} 27. Bg5
{[%clk 00:15:47]} {[%emt 00:02:16]} Bxg5 {[%clk 00:19:24]} {[%emt 00:06:08]} 28.
Qxg5 {[%clk 00:16:06]} {[%emt 00:00:10]} d6 {[%clk 00:17:48]} {[%emt 00:02:08]}
29. exd6 {[%clk 00:13:03]} {[%emt 00:03:32]} Qxd6 {[%clk 00:18:16]} {[%emt
00:00:03]} 30. Qf4 {[%clk 00:13:09]} {[%emt 00:00:23]} Qxf4 {[%clk 00:15:42]}
{[%emt 00:03:04]} 31. Nxf4 {[%clk 00:13:34]} {[%emt 00:00:05]} Rfd8 {[%clk
00:14:47]} {[%emt 00:01:26]} 32. Ne6 {[%clk 00:08:46]} {[%emt 00:05:17]} Re8
{[%clk 00:15:00]} {[%emt 00:00:17]} 33. Nxg7 {[%clk 00:07:29]} {[%emt
00:01:47]} Kxg7 {[%clk 00:13:45]} {[%emt 00:01:45]} 34. Rd7+ {[%clk 00:07:54]}
{[%emt 00:00:05]} Kg6 {[%clk 00:11:55]} {[%emt 00:02:21]} 35. Rxb7 {[%clk
00:08:18]} {[%emt 00:00:06]} Re2 {[%clk 00:11:29]} {[%emt 00:00:55]} 36. h4
{[%clk 00:05:05]} {[%emt 00:03:43]} Rcxc2 {[%clk 00:10:23]} {[%emt 00:01:37]}
37. Rb6+ {[%clk 00:05:04]} {[%emt 00:00:30]} Kh5 {[%clk 00:06:46]} {[%emt
00:04:06]} 38. Rxc2 {[%clk 00:05:25]} {[%emt 00:00:10]} Rxc2 {[%clk 00:07:15]}
{[%emt 00:00:01]} 39. Rxa6 {[%clk 00:03:35]} {[%emt 00:02:20]} Kxh4 {[%clk
00:07:17]} {[%emt 00:00:27]} 40. Rh6+ {[%clk 00:02:08]} {[%emt 00:01:56]} Kg5
{[%clk 00:07:38]} {[%emt 00:00:10]} 41. Rxh7 {[%clk 00:02:33]} {[%emt
00:00:05]} Rxb2 {[%clk 00:07:53]} {[%emt 00:00:16]} 42. Kh2 {[%clk 00:02:33]}
{[%emt 00:00:29]} b4 {[%clk 00:06:35]} {[%emt 00:01:48]} 43. Rb7 {[%clk
00:01:54]} {[%emt 00:01:09]} Kf4 {[%clk 00:06:27]} {[%emt 00:00:38]} 44. Rb5
{[%clk 00:02:11]} {[%emt 00:00:11]} b3 {[%clk 00:06:27]} {[%emt 00:00:33]} 45.
Kh3 {[%clk 00:01:55]} {[%emt 00:00:45]} Rb1 {[%clk 00:05:47]} {[%emt 00:01:11]}
46. Kh2 {[%clk 00:01:46]} {[%emt 00:00:37]} Rb2 {[%clk 00:01:05]} {[%emt
00:05:13]} 47. Kh3 {[%clk 00:02:09]} {[%emt 00:00:06]} Rb1 {[%clk 00:01:14]}
{[%emt 00:00:23]} 48. Kh2 {[%clk 00:02:26]} {[%emt 00:00:11]} Rb2 {[%clk
00:01:23]} {[%emt 00:00:22]} 49. Kh3 {[%clk 00:02:43]} {[%emt 00:00:12]} Rb1
{[%clk 00:01:51]} {[%emt 00:00:03]} 50. Kh2 {[%emt 00:00:21]} Ke5 {[%emt
00:00:04]} 1/2-1/2

[Event "9e Open International de Porticcio"]
[Site "Porticcio, France"]
[Date "2024.07.03"]
[Round "7.3"]
[White "Lagarde, Maxime"]
[Black "Anwesh, Upadhyaya"]
[Result "1-0"]
[TimeControl "1h30+30s/move"]
[WhiteElo "2604"]
[BlackElo "2354"]

1. Nf3 {[%clk 01:30:53]} {[%emt 00:00:03]} d5 {[%clk 01:28:20]} {[%emt
00:02:42]} 2. g3 {[%clk 01:31:19]} {[%emt 00:00:05]} g6 {[%clk 01:26:16]}
{[%emt 00:02:33]} 3. Bg2 {[%clk 01:30:08]} {[%emt 00:01:41]} Bg7 {[%clk
01:26:36]} {[%emt 00:00:09]} 4. c4 {[%clk 01:30:26]} {[%emt 00:00:13]} c6
{[%clk 01:22:26]} {[%emt 00:04:40]} 5. Qa4 {[%clk 01:30:29]} {[%emt 00:00:27]}
Nf6 {[%clk 01:20:07]} {[%emt 00:02:48]} 6. cxd5 {[%clk 01:30:47]} {[%emt
00:00:13]} Nxd5 {[%clk 01:19:57]} {[%emt 00:00:40]} 7. h4 {[%clk 01:30:10]}
{[%emt 00:01:07]} Nd7 {[%clk 01:18:41]} {[%emt 00:01:45]} 8. h5 {[%clk
01:22:05]} {[%emt 00:08:36]} N7b6 {[%clk 01:16:45]} {[%emt 00:02:25]} 9. Qd1
{[%clk 01:17:59]} {[%emt 00:04:36]} Bg4 {[%clk 01:13:45]} {[%emt 00:03:30]} 10.
h6 {[%clk 01:16:46]} {[%emt 00:01:43]} Bf6 {[%clk 01:12:05]} {[%emt 00:02:10]}
11. d4 {[%clk 01:14:32]} {[%emt 00:02:44]} Bxf3 {[%clk 01:09:21]} {[%emt
00:03:14]} 12. Bxf3 {[%clk 01:14:57]} {[%emt 00:00:05]} e5 {[%clk 01:06:53]}
{[%emt 00:02:58]} 13. dxe5 {[%clk 01:11:47]} {[%emt 00:03:40]} Bxe5 {[%clk
01:06:59]} {[%emt 00:00:23]} 14. O-O {[%clk 01:06:22]} {[%emt 00:05:56]} O-O
{[%clk 01:04:04]} {[%emt 00:03:25]} 15. Qb3 {[%clk 01:01:15]} {[%emt 00:05:38]}
Qe7 {[%clk 01:00:56]} {[%emt 00:03:37]} 16. Nc3 {[%clk 00:57:55]} {[%emt
00:03:51]} Rad8 {[%clk 00:49:56]} {[%emt 00:11:30]} 17. Nxd5 {[%clk 00:53:58]}
{[%emt 00:04:27]} Nxd5 {[%clk 00:46:06]} {[%emt 00:04:20]} 18. Rd1 {[%clk
00:54:04]} {[%emt 00:00:24]} Bf6 {[%clk 00:39:49]} {[%emt 00:06:47]} 19. Bd2
{[%clk 00:50:04]} {[%emt 00:04:30]} Rfe8 {[%clk 00:39:02]} {[%emt 00:01:17]} 20.
a4 {[%clk 00:46:24]} {[%emt 00:04:11]} b6 {[%clk 00:32:45]} {[%emt 00:06:47]}
21. a5 {[%clk 00:29:26]} {[%emt 00:17:27]} Qe5 {[%clk 00:25:47]} {[%emt
00:07:27]} 22. e4 {[%clk 00:25:18]} {[%emt 00:04:38]} Nc7 {[%clk 00:19:51]}
{[%emt 00:06:26]} 23. axb6 {[%clk 00:24:18]} {[%emt 00:01:31]} axb6 {[%clk
00:20:01]} {[%emt 00:00:19]} 24. Bf4 {[%clk 00:18:48]} {[%emt 00:06:00]} Qe7
{[%clk 00:20:22]} {[%emt 00:00:09]} 25. Rxd8 {[%clk 00:13:25]} {[%emt
00:05:53]} Rxd8 {[%clk 00:20:27]} {[%emt 00:00:26]} 26. Ra7 {[%clk 00:13:14]}
{[%emt 00:00:41]} Qe6 {[%clk 00:17:11]} {[%emt 00:03:45]} 27. Qxe6 {[%clk
00:08:28]} {[%emt 00:05:17]} Nxe6 {[%clk 00:17:34]} {[%emt 00:00:08]} 28. e5
{[%clk 00:08:48]} {[%emt 00:00:10]} Bh8 {[%clk 00:17:23]} {[%emt 00:00:41]} 29.
Bxc6 {[%clk 00:07:37]} {[%emt 00:01:41]} g5 {[%clk 00:17:44]} {[%emt 00:00:09]}
30. Be3 {[%clk 00:07:57]} {[%emt 00:00:10]} Bxe5 {[%clk 00:17:59]} {[%emt
00:00:15]} 31. b4 {[%clk 00:04:58]} {[%emt 00:03:30]} Bd4 {[%clk 00:14:10]}
{[%emt 00:04:18]} 32. Bxd4 {[%clk 00:03:00]} {[%emt 00:02:28]} Rxd4 {[%clk
00:14:35]} {[%emt 00:00:06]} 33. b5 {[%clk 00:03:01]} {[%emt 00:00:29]} Kf8
{[%clk 00:08:19]} {[%emt 00:06:45]} 34. Rb7 {[%clk 00:03:17]} {[%emt 00:00:13]}
Rd6 {[%clk 00:07:21]} {[%emt 00:01:28]} 35. Rxb6 {[%clk 00:03:42]} {[%emt
00:00:06]} Nd4 {[%clk 00:07:43]} {[%emt 00:00:08]} 36. Rb8+ {[%clk 00:02:33]}
{[%emt 00:01:39]} Ke7 {[%clk 00:08:11]} {[%emt 00:00:02]} 37. Rb7+ {[%clk
00:01:43]} {[%emt 00:01:20]} Kf8 {[%clk 00:06:16]} {[%emt 00:02:25]} 38. Be4
{[%clk 00:00:49]} {[%emt 00:01:22]} f5 {[%clk 00:05:14]} {[%emt 00:01:33]} 39.
Bg2 {[%clk 00:00:55]} {[%emt 00:00:24]} Ne2+ {[%clk 00:02:20]} {[%emt
00:03:24]} 40. Kf1 {[%clk 00:01:22]} {[%emt 00:00:03]} Nc3 {[%clk 00:02:48]}
{[%emt 00:00:02]} 41. Bc6 {[%clk 00:01:36]} {[%emt 00:00:16]} Rxh6 {[%clk
00:03:09]} {[%emt 00:00:09]} 42. Rc7 {[%clk 00:01:17]} {[%emt 00:00:49]} Na4
{[%clk 00:03:18]} {[%emt 00:00:21]} 43. Ke2 {[%clk 00:00:57]} {[%emt 00:00:50]}
Re6+ {[%clk 00:03:05]} {[%emt 00:00:43]} 44. Kd3 {[%clk 00:01:09]} {[%emt
00:00:16]} Re7 {[%clk 00:02:46]} {[%emt 00:00:51]} 45. Rc8+ {[%clk 00:01:20]}
{[%emt 00:00:19]} Kf7 {[%clk 00:03:06]} {[%emt 00:00:10]} 46. Bd5+ {[%clk
00:01:11]} {[%emt 00:00:39]} Kg7 {[%clk 00:03:02]} {[%emt 00:00:35]} 47. Rc6
{[%clk 00:00:50]} {[%emt 00:00:49]} Rb7 {[%clk 00:01:09]} {[%emt 00:02:25]} 48.
Bb3 {[%clk 00:01:12]} {[%emt 00:00:08]} Nb6 {[%clk 00:01:01]} {[%emt 00:00:39]}
49. Kc3 {[%clk 00:01:05]} {[%emt 00:00:34]} h5 {[%clk 00:00:48]} {[%emt
00:00:45]} 50. Be6 {[%clk 00:01:25]} {[%emt 00:00:10]} Na8 {[%clk 00:00:39]}
{[%emt 00:00:39]} 51. Kc4 {[%clk 00:01:26]} {[%emt 00:00:29]} h4 {[%clk
00:00:34]} {[%emt 00:00:35]} 52. Bxf5 {[%clk 00:01:29]} {[%emt 00:00:27]} Rf7
{[%clk 00:00:35]} {[%emt 00:00:29]} 53. Rg6+ {[%clk 00:01:40]} {[%emt
00:00:18]} Kf8 {[%clk 00:00:53]} {[%emt 00:00:13]} 54. Rxg5 {[%clk 00:01:45]}
{[%emt 00:00:25]} hxg3 {[%clk 00:01:10]} {[%emt 00:00:14]} 55. fxg3 {[%clk
00:02:09]} {[%emt 00:00:05]} Ke7 {[%clk 00:01:30]} {[%emt 00:00:10]} 56. g4
{[%clk 00:02:19]} {[%emt 00:00:20]} Kd6 {[%clk 00:01:07]} {[%emt 00:00:53]} 57.
Rg6+ {[%clk 00:02:36]} {[%emt 00:00:13]} Kc7 {[%clk 00:01:34]} {[%emt
00:00:03]} 58. Kc5 {[%clk 00:02:47]} {[%emt 00:00:19]} 1-0